[Event "Titled Tuesday Blitz February 07 Early 2023"]
[White "Malek, Jan"]
[Black "Kalogeris, Ioannis"]
[WhiteFideId "21864080"]
[BlackFideId "4239563"]
[WhiteElo "2370"]
[BlackElo "2423"]
[Result "0-1"]
[Round "10"]
[TimeControl "180+2"]
[Date "2023.02.07"]
[WhiteClock "0:00:05"]
[BlackClock "0:00:14"]

1. c4 {[%clk 0:03:00]}  Nf6 {[%clk 0:02:58]} 2. Nc3 {[%clk 0:03:01]}  c6 {[%clk 0:02:58]} 3. Nf3 {[%clk 0:02:59]}  d5 {[%clk 0:02:58]} 4. e3 {[%clk 0:03:00]}  g6 {[%clk 0:02:47]} 5. b3 {[%clk 0:03:00]}  Bg7 {[%clk 0:02:47]} 6. Bb2 {[%clk 0:03:00]}  O-O {[%clk 0:02:48]} 7. Be2 {[%clk 0:02:59]}  Re8 {[%clk 0:02:46]} 8. d4 {[%clk 0:02:52]}  Bf5 {[%clk 0:02:35]} 9. O-O {[%clk 0:02:52]}  Ne4 {[%clk 0:02:31]} 10. Bd3 {[%clk 0:02:40]}  Nxc3 {[%clk 0:02:24]} 11. Bxc3 {[%clk 0:02:39]}  Bxd3 {[%clk 0:02:21]} 12. Qxd3 {[%clk 0:02:40]}  Nd7 {[%clk 0:02:22]} 13. e4 {[%clk 0:02:38]}  dxe4 {[%clk 0:01:43]} 14. Qxe4 {[%clk 0:02:39]}  a5 {[%clk 0:01:37]} 15. a4 {[%clk 0:02:34]}  Nc5 {[%clk 0:01:30]} 16. Qc2 {[%clk 0:02:30]}  Ne6 {[%clk 0:01:24]} 17. Rad1 {[%clk 0:02:29]}  Qc7 {[%clk 0:01:20]} 18. Rfe1 {[%clk 0:02:28]}  Rad8 {[%clk 0:01:17]} 19. g3 {[%clk 0:02:21]}  Nf8 {[%clk 0:01:10]} 20. Re4 {[%clk 0:02:16]}  Nd7 {[%clk 0:01:06]} 21. Rde1 {[%clk 0:02:13]}  e6 {[%clk 0:01:06]} 22. R4e2 {[%clk 0:02:02]}  Rf8 {[%clk 0:00:58]} 23. h4 {[%clk 0:01:52]}  Rfe8 {[%clk 0:00:58]} 24. h5 {[%clk 0:01:52]}  Nf6 {[%clk 0:00:56]} 25. hxg6 {[%clk 0:01:49]}  hxg6 {[%clk 0:00:57]} 26. Kg2 {[%clk 0:01:47]}  Nh5 {[%clk 0:00:53]} 27. Rh1 {[%clk 0:01:42]}  c5 {[%clk 0:00:53]} 28. dxc5 {[%clk 0:01:24]}  Qxc5 {[%clk 0:00:50]} 29. Bxg7 {[%clk 0:01:23]}  Kxg7 {[%clk 0:00:49]} 30. Re5 {[%clk 0:01:23]}  Qc6 {[%clk 0:00:44]} 31. Rxa5 {[%clk 0:01:14]}  e5 {[%clk 0:00:40]} 32. Qc3 {[%clk 0:01:13]}  f6 {[%clk 0:00:38]} 33. Rb5 {[%clk 0:01:07]}  b6 {[%clk 0:00:28]} 34. Qe3 {[%clk 0:01:07]}  Rd6 {[%clk 0:00:27]} 35. Rh4 {[%clk 0:00:56]}  Red8 {[%clk 0:00:27]} 36. Qe4 {[%clk 0:00:46]}  Nf4+ {[%clk 0:00:23]} 37. Rxf4 {[%clk 0:00:40]}  exf4 {[%clk 0:00:24]} 38. Qxc6 {[%clk 0:00:35]}  Rxc6 {[%clk 0:00:23]} 39. gxf4 {[%clk 0:00:36]}  Rd3 {[%clk 0:00:20]} 40. Ne1 {[%clk 0:00:31]}  Rc3 {[%clk 0:00:19]} 41. Nf3 {[%clk 0:00:31]}  Kf7 {[%clk 0:00:19]} 42. Nd2 {[%clk 0:00:28]}  Re6 {[%clk 0:00:18]} 43. Nf1 {[%clk 0:00:25]}  Rc2 {[%clk 0:00:14]} 44. Ne3 {[%clk 0:00:25]}  Rxe3 {[%clk 0:00:14]} 45. Rxb6 {[%clk 0:00:21]}  Ree2 {[%clk 0:00:14]} 46. a5 {[%clk 0:00:21]}  Rxf2+ {[%clk 0:00:14]} 47. Kg3 {[%clk 0:00:22]}  Rfd2 {[%clk 0:00:13]} 48. Kf3 {[%clk 0:00:21]}  f5 {[%clk 0:00:13]} 49. Ke3 {[%clk 0:00:21]}  Re2+ {[%clk 0:00:12]} 50. Kd3 {[%clk 0:00:20]}  Rcd2+ {[%clk 0:00:12]} 51. Kc3 {[%clk 0:00:21]}  Ra2 {[%clk 0:00:11]} 52. a6 {[%clk 0:00:21]}  Re6 {[%clk 0:00:11]} 53. Rb7+ {[%clk 0:00:12]}  Re7 {[%clk 0:00:11]} 54. Rb6 {[%clk 0:00:04]}  Re6 {[%clk 0:00:12]} 55. Rb7+ {[%clk 0:00:04]}  Kf6 {[%clk 0:00:12]} 56. c5 {[%clk 0:00:05]}  Rexa6 {[%clk 0:00:11]} 57. Kc4 {[%clk 0:00:06]}  Rc2+ {[%clk 0:00:11]} 58. Kb5 {[%clk 0:00:06]}  Re6 {[%clk 0:00:11]} 59. b4 {[%clk 0:00:06]}  g5 {[%clk 0:00:11]} 60. fxg5+ {[%clk 0:00:06]}  Kxg5 {[%clk 0:00:12]} 61. Rg7+ {[%clk 0:00:06]}  Kf6 {[%clk 0:00:12]} 62. Rd7 {[%clk 0:00:07]}  f4 {[%clk 0:00:13]} 63. Rd8 {[%clk 0:00:07]}  Ke7 {[%clk 0:00:12]} 64. Rd3 {[%clk 0:00:06]}  Rf6 {[%clk 0:00:12]} 65. Rf3 {[%clk 0:00:06]}  Ke6 {[%clk 0:00:12]} 66. c6 {[%clk 0:00:04]}  Ke5 {[%clk 0:00:13]} 67. Rf1 {[%clk 0:00:02]}  Rcxc6 {[%clk 0:00:13]} 68. Re1+ {[%clk 0:00:03]}  Kf5 {[%clk 0:00:13]} 69. Ka5 {[%clk 0:00:03]}  Ra6+ {[%clk 0:00:13]} 70. Kb5 {[%clk 0:00:03]}  Rae6 {[%clk 0:00:14]} 71. Rh1 {[%clk 0:00:03]}  f3 {[%clk 0:00:14]} 72. Ka5 {[%clk 0:00:03]}  f2 {[%clk 0:00:14]} 73. Rf1 {[%clk 0:00:04]}  Ke4 {[%clk 0:00:15]} 74. b5 {[%clk 0:00:04]}  Ke3 {[%clk 0:00:15]} 75. Rb1 {[%clk 0:00:05]}  f1=Q {[%clk 0:00:14]} 0-1


[Site "https://www.chess.com"]

[Event "Titled Tuesday Blitz February 07 Early 2023"]
[White "Iskusnyh, Sergei"]
[Black "Aradhya, Garg"]
[WhiteFideId "4120027"]
[BlackFideId "25006746"]
[WhiteElo "2440"]
[BlackElo "2284"]
[Result "0-1"]
[Round "10"]
[TimeControl "180+2"]
[Date "2023.02.07"]
[WhiteClock "0:00:01"]
[BlackClock "0:01:06"]

1. d4 {[%clk 0:03:00]}  d5 {[%clk 0:03:00]} 2. c4 {[%clk 0:03:00]}  c6 {[%clk 0:03:00]} 3. Nf3 {[%clk 0:03:00]}  Nf6 {[%clk 0:03:00]} 4. e3 {[%clk 0:03:01]}  Bf5 {[%clk 0:02:59]} 5. Nc3 {[%clk 0:03:00]}  e6 {[%clk 0:02:59]} 6. Nh4 {[%clk 0:03:00]}  Be4 {[%clk 0:02:59]} 7. f3 {[%clk 0:03:00]}  Bg6 {[%clk 0:02:59]} 8. Bd2 {[%clk 0:03:00]}  Nbd7 {[%clk 0:02:57]} 9. Nxg6 {[%clk 0:02:58]}  hxg6 {[%clk 0:02:56]} 10. Qc2 {[%clk 0:02:58]}  Bd6 {[%clk 0:02:50]} 11. O-O-O {[%clk 0:02:55]}  Rxh2 {[%clk 0:02:49]} 12. Rxh2 {[%clk 0:02:52]}  Bxh2 {[%clk 0:02:50]} 13. g4 {[%clk 0:02:39]}  Qc7 {[%clk 0:02:49]} 14. g5 {[%clk 0:02:32]}  Nh5 {[%clk 0:02:48]} 15. f4 {[%clk 0:02:31]}  Bg3 {[%clk 0:02:48]} 16. Kb1 {[%clk 0:02:22]}  Nxf4 {[%clk 0:02:46]} 17. exf4 {[%clk 0:02:20]}  Bxf4 {[%clk 0:02:47]} 18. cxd5 {[%clk 0:02:04]}  cxd5 {[%clk 0:02:45]} 19. Bxf4 {[%clk 0:01:48]}  Qxf4 {[%clk 0:02:44]} 20. Bb5 {[%clk 0:01:41]}  Qf5 {[%clk 0:02:40]} 21. Bd3 {[%clk 0:01:34]}  Qxg5 {[%clk 0:02:40]} 22. Nb5 {[%clk 0:01:33]}  Kf8 {[%clk 0:02:37]} 23. Qh2 {[%clk 0:01:25]}  Qd8 {[%clk 0:02:32]} 24. Nd6 {[%clk 0:00:19]}  Nf6 {[%clk 0:02:28]} 25. Nxb7 {[%clk 0:00:19]}  Qb8 {[%clk 0:02:27]} 26. Nd6 {[%clk 0:00:18]}  Ke7 {[%clk 0:02:26]} 27. Rc1 {[%clk 0:00:12]}  Qxd6 {[%clk 0:02:26]} 28. Rc7+ {[%clk 0:00:11]}  Nd7 {[%clk 0:02:27]} 29. Qc2 {[%clk 0:00:12]}  Rh8 {[%clk 0:02:23]} 30. a3 {[%clk 0:00:11]}  Rh2 {[%clk 0:02:22]} 31. Qc3 {[%clk 0:00:11]}  Rh3 {[%clk 0:02:16]} 32. Rxa7 {[%clk 0:00:10]}  g5 {[%clk 0:02:06]} 33. Qc2 {[%clk 0:00:09]}  Kf6 {[%clk 0:01:56]} 34. Qf2+ {[%clk 0:00:06]}  Qf4 {[%clk 0:01:55]} 35. Qe2 {[%clk 0:00:04]}  Nb6 {[%clk 0:01:45]} 36. Bb5 {[%clk 0:00:03]}  Nc8 {[%clk 0:01:14]} 37. Rc7 {[%clk 0:00:02]}  Qxc7 {[%clk 0:01:12]} 38. Qf1+ {[%clk 0:00:03]}  Qf4 {[%clk 0:01:12]} 39. Qxh3 {[%clk 0:00:03]}  Qxd4 {[%clk 0:01:12]} 40. Qh8 {[%clk 0:00:02]}  Ne7 {[%clk 0:01:08]} 41. Qd8 {[%clk 0:00:01]}  g4 {[%clk 0:01:07]} 42. a4 {[%clk 0:00:01]}  g3 {[%clk 0:01:06]} 0-1


[Site "https://www.chess.com"]

[Event "Titled Tuesday Blitz February 07 Early 2023"]
[White "Csonka, Balazs"]
[Black "Pinheiro, Iung Alicio de O."]
[WhiteFideId "742910"]
[BlackFideId "2104350"]
[WhiteElo "2496"]
[BlackElo "2306"]
[Result "1-0"]
[Round "10"]
[TimeControl "180+2"]
[Date "2023.02.07"]
[WhiteClock "0:00:08"]
[BlackClock "0:00:10"]

1. e4 {[%clk 0:03:00]}  c5 {[%clk 0:02:54]} 2. Nc3 {[%clk 0:02:59]}  Nc6 {[%clk 0:02:52]} 3. Bb5 {[%clk 0:02:59]}  Nd4 {[%clk 0:02:51]} 4. Nf3 {[%clk 0:02:59]}  e6 {[%clk 0:02:51]} 5. O-O {[%clk 0:02:57]}  a6 {[%clk 0:02:51]} 6. Bd3 {[%clk 0:02:57]}  Nc6 {[%clk 0:02:51]} 7. Nd5 {[%clk 0:02:58]}  d6 {[%clk 0:02:39]} 8. Ne3 {[%clk 0:02:57]}  Nf6 {[%clk 0:02:37]} 9. Re1 {[%clk 0:02:32]}  Be7 {[%clk 0:02:29]} 10. c3 {[%clk 0:02:32]}  O-O {[%clk 0:02:26]} 11. Bc2 {[%clk 0:02:31]}  e5 {[%clk 0:02:04]} 12. d4 {[%clk 0:02:26]}  cxd4 {[%clk 0:02:00]} 13. cxd4 {[%clk 0:02:26]}  exd4 {[%clk 0:01:50]} 14. Nxd4 {[%clk 0:02:25]}  Nxd4 {[%clk 0:01:50]} 15. Qxd4 {[%clk 0:02:26]}  Re8 {[%clk 0:01:50]} 16. b3 {[%clk 0:02:12]}  Bf8 {[%clk 0:01:09]} 17. Bb2 {[%clk 0:02:12]}  Be6 {[%clk 0:01:04]} 18. Rac1 {[%clk 0:01:54]}  Qa5 {[%clk 0:01:03]} 19. Bc3 {[%clk 0:01:47]}  Qh5 {[%clk 0:01:01]} 20. Bd1 {[%clk 0:01:40]}  Qg6 {[%clk 0:00:59]} 21. Bf3 {[%clk 0:01:37]}  Nd7 {[%clk 0:00:55]} 22. g3 {[%clk 0:01:24]}  Ne5 {[%clk 0:00:51]} 23. Bg2 {[%clk 0:01:24]}  Nc6 {[%clk 0:00:49]} 24. Qd2 {[%clk 0:01:23]}  Qh6 {[%clk 0:00:40]} 25. f4 {[%clk 0:01:18]}  Bh3 {[%clk 0:00:39]} 26. Nf5 {[%clk 0:01:06]}  Qh5 {[%clk 0:00:28]} 27. Bxh3 {[%clk 0:00:38]}  Qxh3 {[%clk 0:00:29]} 28. Rcd1 {[%clk 0:00:32]}  Rad8 {[%clk 0:00:28]} 29. Qg2 {[%clk 0:00:32]}  Qxg2+ {[%clk 0:00:22]} 30. Kxg2 {[%clk 0:00:33]}  g6 {[%clk 0:00:22]} 31. Nh4 {[%clk 0:00:25]}  Bg7 {[%clk 0:00:22]} 32. Bxg7 {[%clk 0:00:24]}  Kxg7 {[%clk 0:00:23]} 33. Nf3 {[%clk 0:00:22]}  Re6 {[%clk 0:00:21]} 34. Kf2 {[%clk 0:00:21]}  Rde8 {[%clk 0:00:22]} 35. Ng5 {[%clk 0:00:21]}  R6e7 {[%clk 0:00:19]} 36. Rxd6 {[%clk 0:00:15]}  h6 {[%clk 0:00:20]} 37. Nf3 {[%clk 0:00:14]}  Rxe4 {[%clk 0:00:20]} 38. Rxe4 {[%clk 0:00:14]}  Rxe4 {[%clk 0:00:21]} 39. Rd7 {[%clk 0:00:14]}  Re7 {[%clk 0:00:22]} 40. Rxe7 {[%clk 0:00:14]}  Nxe7 {[%clk 0:00:23]} 41. Ke3 {[%clk 0:00:14]}  Kf6 {[%clk 0:00:23]} 42. Ke4 {[%clk 0:00:10]}  Ke6 {[%clk 0:00:23]} 43. Ne5 {[%clk 0:00:11]}  Nd5 {[%clk 0:00:20]} 44. Kd4 {[%clk 0:00:06]}  Ne7 {[%clk 0:00:10]} 45. Nc4 {[%clk 0:00:06]}  Kd7 {[%clk 0:00:09]} 46. Ne5+ {[%clk 0:00:05]}  Ke6 {[%clk 0:00:08]} 47. Kc5 {[%clk 0:00:06]}  f6 {[%clk 0:00:09]} 48. Nc4 {[%clk 0:00:05]}  Nd5 {[%clk 0:00:08]} 49. a4 {[%clk 0:00:03]}  h5 {[%clk 0:00:04]} 50. a5 {[%clk 0:00:03]}  g5 {[%clk 0:00:05]} 51. fxg5 {[%clk 0:00:03]}  fxg5 {[%clk 0:00:05]} 52. Nd6 {[%clk 0:00:04]}  Nf6 {[%clk 0:00:03]} 53. Nxb7 {[%clk 0:00:03]}  Ne4+ {[%clk 0:00:03]} 54. Kc6 {[%clk 0:00:04]}  Nd2 {[%clk 0:00:04]} 55. Nc5+ {[%clk 0:00:04]}  Ke7 {[%clk 0:00:03]} 56. b4 {[%clk 0:00:05]}  Nc4 {[%clk 0:00:03]} 57. Nxa6 {[%clk 0:00:05]}  h4 {[%clk 0:00:04]} 58. gxh4 {[%clk 0:00:05]}  g4 {[%clk 0:00:04]} 59. Kc5 {[%clk 0:00:05]}  Ne5 {[%clk 0:00:04]} 60. b5 {[%clk 0:00:05]}  Nf3 {[%clk 0:00:05]} 61. b6 {[%clk 0:00:05]}  Nxh2 {[%clk 0:00:06]} 62. b7 {[%clk 0:00:05]}  g3 {[%clk 0:00:07]} 63. b8=Q {[%clk 0:00:06]}  g2 {[%clk 0:00:08]} 64. Qxh2 {[%clk 0:00:06]}  g1=Q+ {[%clk 0:00:09]} 65. Qxg1 {[%clk 0:00:07]}  Ke6 {[%clk 0:00:09]} 66. h5 {[%clk 0:00:07]}  Kf5 {[%clk 0:00:10]} 67. h6 {[%clk 0:00:07]}  Ke6 {[%clk 0:00:10]} 68. h7 {[%clk 0:00:08]} 1-0


[Site "https://www.chess.com"]

[Event "Titled Tuesday Blitz February 07 Early 2023"]
[White "Adla, Diego"]
[Black "Papasimakopoulos, Alexandros"]
[WhiteFideId "100072"]
[BlackFideId "4244125"]
[WhiteElo "2383"]
[BlackElo "2401"]
[Result "0-1"]
[Round "10"]
[TimeControl "180+2"]
[Date "2023.02.07"]
[WhiteClock "0:01:06"]
[BlackClock "0:00:09"]

1. Nf3 {[%clk 0:03:00]}  f5 {[%clk 0:02:58]} 2. g3 {[%clk 0:02:57]}  Nf6 {[%clk 0:02:58]} 3. Bg2 {[%clk 0:02:57]}  g6 {[%clk 0:02:58]} 4. O-O {[%clk 0:02:54]}  Bg7 {[%clk 0:02:59]} 5. b3 {[%clk 0:02:54]}  O-O {[%clk 0:02:58]} 6. Bb2 {[%clk 0:02:55]}  a5 {[%clk 0:02:55]} 7. a4 {[%clk 0:02:52]}  d6 {[%clk 0:02:53]} 8. d3 {[%clk 0:02:50]}  e5 {[%clk 0:02:53]} 9. Nbd2 {[%clk 0:02:50]}  h6 {[%clk 0:02:53]} 10. h3 {[%clk 0:02:50]}  g5 {[%clk 0:02:53]} 11. e3 {[%clk 0:02:50]}  Kh8 {[%clk 0:02:52]} 12. d4 {[%clk 0:02:49]}  e4 {[%clk 0:02:52]} 13. Nh2 {[%clk 0:02:49]}  d5 {[%clk 0:02:51]} 14. f3 {[%clk 0:02:48]}  Be6 {[%clk 0:02:47]} 15. fxe4 {[%clk 0:02:47]}  fxe4 {[%clk 0:02:42]} 16. Ba3 {[%clk 0:02:48]}  Rf7 {[%clk 0:02:41]} 17. g4 {[%clk 0:02:47]}  Nc6 {[%clk 0:02:31]} 18. Rf2 {[%clk 0:02:47]}  Nb4 {[%clk 0:02:31]} 19. Ndf1 {[%clk 0:02:46]}  b6 {[%clk 0:02:01]} 20. Ng3 {[%clk 0:02:46]}  c5 {[%clk 0:02:01]} 21. Bb2 {[%clk 0:02:37]}  Qc7 {[%clk 0:01:47]} 22. Nhf1 {[%clk 0:02:33]}  Rc8 {[%clk 0:01:39]} 23. Nf5 {[%clk 0:02:25]}  c4 {[%clk 0:01:33]} 24. N1g3 {[%clk 0:02:21]}  c3 {[%clk 0:01:22]} 25. Ba3 {[%clk 0:02:20]}  Bf8 {[%clk 0:01:22]} 26. Bxb4 {[%clk 0:02:15]}  axb4 {[%clk 0:01:19]} 27. Bf1 {[%clk 0:02:15]}  Bd6 {[%clk 0:01:12]} 28. Kg2 {[%clk 0:02:09]}  Kh7 {[%clk 0:00:49]} 29. Bb5 {[%clk 0:02:09]}  Bxg3 {[%clk 0:00:42]} 30. Nxg3 {[%clk 0:02:08]}  Rcf8 {[%clk 0:00:43]} 31. Qe2 {[%clk 0:01:59]}  Ng8 {[%clk 0:00:25]} 32. Raf1 {[%clk 0:01:59]}  Ne7 {[%clk 0:00:17]} 33. Rxf7+ {[%clk 0:01:57]}  Rxf7 {[%clk 0:00:18]} 34. Rxf7+ {[%clk 0:01:57]}  Bxf7 {[%clk 0:00:19]} 35. Qf2 {[%clk 0:01:43]}  Ng6 {[%clk 0:00:19]} 36. Qf6 {[%clk 0:01:38]}  Qe7 {[%clk 0:00:17]} 37. Qxb6 {[%clk 0:01:33]}  Nh4+ {[%clk 0:00:17]} 38. Kf2 {[%clk 0:01:31]}  Be6 {[%clk 0:00:17]} 39. Be2 {[%clk 0:01:16]}  Qf6+ {[%clk 0:00:12]} 40. Ke1 {[%clk 0:01:15]}  Ng2+ {[%clk 0:00:12]} 41. Kd1 {[%clk 0:01:12]}  Nxe3+ {[%clk 0:00:12]} 42. Kc1 {[%clk 0:01:13]}  Qf2 {[%clk 0:00:10]} 43. Qxe6 {[%clk 0:01:06]}  Qe1+ {[%clk 0:00:09]} 0-1


[Site "https://www.chess.com"]

[Event "Titled Tuesday Blitz February 07 Early 2023"]
[White "Megalios, Konstantinos"]
[Black "Bulmaga, Irina"]
[WhiteFideId "4238044"]
[BlackFideId "13903063"]
[WhiteElo "2372"]
[BlackElo "2422"]
[Result "0-1"]
[Round "10"]
[TimeControl "180+2"]
[Date "2023.02.07"]
[WhiteClock "0:00:11"]
[BlackClock "0:00:14"]

1. Nf3 {[%clk 0:03:00]}  Nf6 {[%clk 0:02:59]} 2. g3 {[%clk 0:03:00]}  b6 {[%clk 0:02:58]} 3. Bg2 {[%clk 0:03:00]}  Bb7 {[%clk 0:02:59]} 4. O-O {[%clk 0:02:58]}  c5 {[%clk 0:02:58]} 5. c4 {[%clk 0:02:57]}  e6 {[%clk 0:02:56]} 6. b3 {[%clk 0:02:57]}  Be7 {[%clk 0:02:56]} 7. Bb2 {[%clk 0:02:57]}  Qc8 {[%clk 0:02:56]} 8. Nc3 {[%clk 0:02:57]}  O-O {[%clk 0:02:55]} 9. Rc1 {[%clk 0:02:56]}  Nc6 {[%clk 0:02:48]} 10. Re1 {[%clk 0:02:50]}  a6 {[%clk 0:02:28]} 11. e3 {[%clk 0:02:39]}  Rd8 {[%clk 0:02:25]} 12. d4 {[%clk 0:02:39]}  cxd4 {[%clk 0:02:14]} 13. exd4 {[%clk 0:02:31]}  Qb8 {[%clk 0:01:41]} 14. d5 {[%clk 0:02:28]}  Na5 {[%clk 0:01:33]} 15. Nd4 {[%clk 0:02:14]}  b5 {[%clk 0:01:02]} 16. Ne4 {[%clk 0:01:19]}  bxc4 {[%clk 0:00:50]} 17. Nxf6+ {[%clk 0:01:12]}  Bxf6 {[%clk 0:00:49]} 18. b4 {[%clk 0:01:13]}  Bxd5 {[%clk 0:00:41]} 19. Bxd5 {[%clk 0:01:10]}  exd5 {[%clk 0:00:41]} 20. Qa4 {[%clk 0:00:51]}  Bxd4 {[%clk 0:00:32]} 21. Bxd4 {[%clk 0:00:50]}  Nc6 {[%clk 0:00:33]} 22. Bc5 {[%clk 0:00:35]}  Qb5 {[%clk 0:00:29]} 23. Qd1 {[%clk 0:00:31]}  d6 {[%clk 0:00:27]} 24. a4 {[%clk 0:00:29]}  Qb7 {[%clk 0:00:25]} 25. Bd4 {[%clk 0:00:17]}  Qxb4 {[%clk 0:00:20]} 26. Bc3 {[%clk 0:00:16]}  Qc5 {[%clk 0:00:19]} 27. Qg4 {[%clk 0:00:13]}  d4 {[%clk 0:00:18]} 28. Bd2 {[%clk 0:00:13]}  Ne5 {[%clk 0:00:18]} 29. Qe4 {[%clk 0:00:12]}  Qc6 {[%clk 0:00:14]} 30. Qxc6 {[%clk 0:00:10]}  Nxc6 {[%clk 0:00:14]} 31. Rxc4 {[%clk 0:00:11]}  Ne5 {[%clk 0:00:14]} 0-1


[Site "https://www.chess.com"]

[Event "Titled Tuesday Blitz February 07 Early 2023"]
[White "Vlassov, Nikolai"]
[Black "Moksh Amit Doshi"]
[WhiteFideId "4103360"]
[BlackFideId "25064967"]
[WhiteElo "2283"]
[BlackElo "2401"]
[Result "0-1"]
[Round "10"]
[TimeControl "180+2"]
[Date "2023.02.07"]
[WhiteClock "0:00:09"]
[BlackClock "0:01:42"]

1. e4 {[%clk 0:03:00]}  c5 {[%clk 0:02:58]} 2. c3 {[%clk 0:03:00]}  Nf6 {[%clk 0:02:57]} 3. e5 {[%clk 0:03:00]}  Nd5 {[%clk 0:02:57]} 4. d4 {[%clk 0:03:00]}  d6 {[%clk 0:02:57]} 5. c4 {[%clk 0:02:58]}  Nb4 {[%clk 0:02:50]} 6. dxc5 {[%clk 0:02:39]}  dxc5 {[%clk 0:02:48]} 7. Qxd8+ {[%clk 0:02:38]}  Kxd8 {[%clk 0:02:49]} 8. Na3 {[%clk 0:02:38]}  Bf5 {[%clk 0:02:47]} 9. Bg5 {[%clk 0:02:29]}  N8c6 {[%clk 0:02:46]} 10. Nf3 {[%clk 0:02:15]}  Be4 {[%clk 0:02:42]} 11. e6 {[%clk 0:02:06]}  Bxf3 {[%clk 0:02:31]} 12. gxf3 {[%clk 0:02:05]}  Nd4 {[%clk 0:02:31]} 13. O-O-O {[%clk 0:01:59]}  fxe6 {[%clk 0:02:18]} 14. Nb5 {[%clk 0:01:56]}  e5 {[%clk 0:02:15]} 15. f4 {[%clk 0:01:55]}  a6 {[%clk 0:02:13]} 16. Nc3 {[%clk 0:01:49]}  h6 {[%clk 0:02:03]} 17. Ne4 {[%clk 0:00:36]}  hxg5 {[%clk 0:01:58]} 18. fxe5 {[%clk 0:00:31]}  e6 {[%clk 0:01:52]} 19. Nxg5 {[%clk 0:00:30]}  Ke8 {[%clk 0:01:52]} 20. Bg2 {[%clk 0:00:29]}  Be7 {[%clk 0:01:51]} 21. Ne4 {[%clk 0:00:24]}  Nxa2+ {[%clk 0:01:49]} 22. Kb1 {[%clk 0:00:23]}  Nb4 {[%clk 0:01:50]} 23. f4 {[%clk 0:00:18]}  Rd8 {[%clk 0:01:48]} 24. Nc3 {[%clk 0:00:10]}  Nbc6 {[%clk 0:01:47]} 25. Be4 {[%clk 0:00:10]}  Rh4 {[%clk 0:01:46]} 26. Rdf1 {[%clk 0:00:09]}  Kd7 {[%clk 0:01:43]} 27. Rf2 {[%clk 0:00:09]}  Rf8 {[%clk 0:01:43]} 28. Rhf1 {[%clk 0:00:09]}  Kc7 {[%clk 0:01:42]} 0-1


[Site "https://www.chess.com"]

[Event "Titled Tuesday Blitz February 07 Early 2023"]
[White "Defend, Balint"]
[Black "Averjanov, Alexey"]
[WhiteFideId "17004853"]
[BlackFideId "14109867"]
[WhiteElo "1673"]
[BlackElo "2399"]
[Result "1-0"]
[Round "10"]
[TimeControl "180+2"]
[Date "2023.02.07"]
[WhiteClock "0:01:07"]
[BlackClock "0:00:08"]

1. e4 {[%clk 0:03:00]}  c6 {[%clk 0:03:00]} 2. d4 {[%clk 0:03:00]}  d5 {[%clk 0:03:01]} 3. e5 {[%clk 0:03:01]}  Bf5 {[%clk 0:03:00]} 4. h4 {[%clk 0:03:00]}  h5 {[%clk 0:03:00]} 5. Bd3 {[%clk 0:03:01]}  Bxd3 {[%clk 0:02:59]} 6. Qxd3 {[%clk 0:03:02]}  e6 {[%clk 0:03:00]} 7. Bg5 {[%clk 0:03:03]}  Qa5+ {[%clk 0:02:59]} 8. Nd2 {[%clk 0:03:03]}  Qa6 {[%clk 0:02:59]} 9. c4 {[%clk 0:03:04]}  Bb4 {[%clk 0:02:59]} 10. Nf3 {[%clk 0:03:03]}  Nd7 {[%clk 0:02:58]} 11. a3 {[%clk 0:03:03]}  dxc4 {[%clk 0:02:43]} 12. Qc2 {[%clk 0:03:02]}  Nb6 {[%clk 0:02:32]} 13. O-O {[%clk 0:03:01]}  Bxd2 {[%clk 0:02:26]} 14. Nxd2 {[%clk 0:03:00]}  Nh6 {[%clk 0:02:22]} 15. a4 {[%clk 0:02:57]}  Nf5 {[%clk 0:02:03]} 16. a5 {[%clk 0:02:51]}  Nd5 {[%clk 0:02:00]} 17. Nxc4 {[%clk 0:02:48]}  f6 {[%clk 0:01:46]} 18. exf6 {[%clk 0:02:45]}  gxf6 {[%clk 0:01:47]} 19. Rfe1 {[%clk 0:02:35]}  O-O-O {[%clk 0:01:26]} 20. Be3 {[%clk 0:02:11]}  Rhg8 {[%clk 0:01:21]} 21. Qe4 {[%clk 0:02:05]}  Rde8 {[%clk 0:01:10]} 22. Rac1 {[%clk 0:01:59]}  Rg4 {[%clk 0:01:08]} 23. Qb1 {[%clk 0:01:44]}  Reg8 {[%clk 0:00:54]} 24. g3 {[%clk 0:01:44]}  Nxg3 {[%clk 0:00:46]} 25. fxg3 {[%clk 0:01:44]}  Rxg3+ {[%clk 0:00:47]} 26. Kh2 {[%clk 0:01:42]}  Rg2+ {[%clk 0:00:40]} 27. Kh1 {[%clk 0:01:42]}  R2g4 {[%clk 0:00:18]} 28. Bf2 {[%clk 0:01:28]}  Kd7 {[%clk 0:00:18]} 29. Qh7+ {[%clk 0:01:25]}  R8g7 {[%clk 0:00:17]} 30. Qxh5 {[%clk 0:01:24]}  Qb5 {[%clk 0:00:16]} 31. Rxe6 {[%clk 0:01:09]}  Kxe6 {[%clk 0:00:14]} 32. Qe8+ {[%clk 0:01:09]}  Kf5 {[%clk 0:00:09]} 33. Nd6+ {[%clk 0:01:08]}  Kf4 {[%clk 0:00:08]} 34. Qe4# {[%clk 0:01:07]} 1-0


[Site "https://www.chess.com"]

[Event "Titled Tuesday Blitz February 07 Early 2023"]
[White "Matinian, Nikita"]
[Black "Borrmann, Laurenz"]
[WhiteFideId "24129100"]
[BlackFideId "312187930"]
[WhiteElo "2407"]
[BlackElo "2304"]
[Result "1-0"]
[Round "10"]
[TimeControl "180+2"]
[Date "2023.02.07"]
[WhiteClock "0:00:53"]
[BlackClock "0:00:10"]

1. e4 {[%clk 0:02:43]}  c6 {[%clk 0:02:58]} 2. Qe2 {[%clk 0:02:42]}  d5 {[%clk 0:02:57]} 3. d3 {[%clk 0:02:42]}  dxe4 {[%clk 0:02:40]} 4. dxe4 {[%clk 0:02:41]}  e5 {[%clk 0:02:41]} 5. g3 {[%clk 0:02:38]}  Nf6 {[%clk 0:02:30]} 6. a4 {[%clk 0:02:34]}  b6 {[%clk 0:02:22]} 7. Nd2 {[%clk 0:02:31]}  Ba6 {[%clk 0:02:18]} 8. Qf3 {[%clk 0:02:31]}  Bxf1 {[%clk 0:02:16]} 9. Kxf1 {[%clk 0:02:32]}  Nbd7 {[%clk 0:02:12]} 10. Ne2 {[%clk 0:02:29]}  Be7 {[%clk 0:02:08]} 11. h4 {[%clk 0:02:28]}  Nc5 {[%clk 0:02:07]} 12. h5 {[%clk 0:02:25]}  h6 {[%clk 0:02:05]} 13. Nc3 {[%clk 0:02:16]}  Qd7 {[%clk 0:01:59]} 14. Kg2 {[%clk 0:02:16]}  O-O {[%clk 0:01:50]} 15. Qf5 {[%clk 0:02:15]}  Qxf5 {[%clk 0:01:45]} 16. exf5 {[%clk 0:02:16]}  Nd5 {[%clk 0:01:38]} 17. Nce4 {[%clk 0:02:13]}  Nb4 {[%clk 0:01:29]} 18. c3 {[%clk 0:02:13]}  Nbd3 {[%clk 0:01:27]} 19. Nxc5 {[%clk 0:02:09]}  bxc5 {[%clk 0:01:20]} 20. Nc4 {[%clk 0:02:09]}  Rab8 {[%clk 0:01:16]} 21. Be3 {[%clk 0:01:52]}  f6 {[%clk 0:01:03]} 22. Rhd1 {[%clk 0:01:46]}  Rfd8 {[%clk 0:01:00]} 23. Rab1 {[%clk 0:01:29]}  Kf7 {[%clk 0:00:42]} 24. Kf3 {[%clk 0:01:27]}  Rd7 {[%clk 0:00:35]} 25. Rd2 {[%clk 0:01:19]}  Rbd8 {[%clk 0:00:22]} 26. Rbd1 {[%clk 0:01:17]}  Rd5 {[%clk 0:00:15]} 27. Ke4 {[%clk 0:01:08]}  Nxb2 {[%clk 0:00:13]} 28. Nxb2 {[%clk 0:01:06]}  Rxd2 {[%clk 0:00:12]} 29. Rxd2 {[%clk 0:01:06]}  Rb8 {[%clk 0:00:12]} 30. Nc4 {[%clk 0:01:05]}  Rb3 {[%clk 0:00:12]} 31. Kd3 {[%clk 0:00:53]}  Ke8 {[%clk 0:00:10]} 32. Kc2 {[%clk 0:00:53]}  Rb7 {[%clk 0:00:10]} 33. Nd6+ {[%clk 0:00:53]}  Bxd6 {[%clk 0:00:10]} 34. Rxd6 {[%clk 0:00:53]} 1-0


[Site "https://www.chess.com"]